bitfinex-derivatives/quotes_BNBF0:USTF0_20260221
["timestamp","ask_amount","ask_price","bid_price","bid_amount"]
[1771684783536,0.95708095,634.03,633.26,1.378]
[1771684783735,0.95708095,634.02,633.26,1.378]
[1771684783934,0.95708095,634.01,633.26,1.378]
[1771684784140,0.95708095,634.0,633.26,1.378]
[1771684784340,0.95708095,633.99,633.26,1.378]
[1771684784540,0.95708095,633.98,633.26,1.378]
[1771684784736,0.95708095,633.97,633.26,1.378]
[1771684785037,0.95708095,633.96,633.26,1.378]
[1771684785241,0.95708095,633.95,633.26,1.378]
[1771684785437,0.95708095,633.94,633.26,1.378]
[1771684785643,0.95708095,633.93,633.26,1.378]
[1771684785943,1.17916955,634.16,633.28,2.32889858]
[1771684786141,0.95714566,634.15,633.28,2.32889858]
[1771684786343,0.95714566,634.14,633.28,2.32889858]
[1771684786542,0.95714566,634.13,633.28,2.32889858]
[1771684786843,0.95714566,634.12,633.3,2.32889858]
[1771684787142,0.95714566,634.11,633.3,2.32889858]
[1771684787342,0.95714566,634.1,633.3,2.32889858]
[1771684787538,0.95714566,634.09,633.3,2.32889858]
[1771684787742,0.95714566,634.08,633.3,2.32889858]
[1771684787942,0.95714566,634.07,633.3,2.32889858]
[1771684788142,0.95714566,634.06,633.3,2.32889858]
[1771684788344,0.95714566,634.05,633.3,2.32889858]
[1771684788539,0.95714566,634.04,633.3,2.32889858]
[1771684788840,0.95714566,634.03,633.3,2.32889858]
[1771684789038,0.95714566,634.02,633.3,2.32889858]
[1771684789239,0.95714566,634.01,633.3,2.32889858]
[1771684789443,0.95714566,634.0,633.3,2.32889858]
[1771684789742,0.95714566,633.99,633.3,2.32889858]
[1771684789942,0.95714566,633.98,633.3,2.32889858]
[1771684790142,0.95714566,633.97,633.3,2.32889858]
[1771684790443,1.17916955,634.17,633.3,2.32889858]
[1771684790640,0.95717925,634.16,633.3,2.32889858]
[1771684790840,0.95717925,634.15,633.3,2.32889858]
[1771684791043,1.17916955,634.18,633.3,2.32889858]
[1771684791044,0.95717925,634.14,633.3,2.32889858]
[1771684791241,0.95717925,634.13,633.3,2.32889858]
[1771684791442,0.95717925,634.12,633.3,2.32889858]
[1771684791641,0.95717925,634.11,633.3,2.32889858]
[1771684791842,0.95717925,634.1,633.3,2.32889858]
[1771684792041,0.95717925,634.09,633.3,2.32889858]
[1771684792345,0.95717925,634.08,633.3,2.32889858]
[1771684792547,0.95717925,634.07,633.3,2.32889858]
[1771684792746,0.95717925,634.06,633.3,2.32889858]
[1771684792945,0.95717925,634.05,633.3,2.32889858]
[1771684793245,0.95717925,634.04,633.3,2.32889858]
[1771684793443,0.95717925,634.03,633.3,2.32889858]
[1771684793643,0.95717925,634.02,633.32,2.32889858]
[1771684793946,0.95717925,634.01,633.32,2.32889858]
[1771684794145,1.17916955,634.21,633.34,2.32889858]
[1771684794348,0.95557625,634.2,633.34,2.32889858]
[1771684794547,0.95557625,634.19,633.34,2.32889858]
[1771684794843,0.95557625,634.18,633.34,2.32889858]
[1771684795144,0.95557625,634.17,633.35,2.32889858]
[1771684795447,0.95557625,634.16,633.35,2.32889858]
[1771684795648,0.95557625,634.15,633.35,2.32889858]
[1771684795945,0.95557625,634.14,633.35,2.32889858]
[1771684796144,0.95557625,634.13,633.35,2.32889858]
[1771684796347,0.95557625,634.12,633.35,2.32889858]
[1771684796543,0.95557625,634.11,633.35,2.32889858]
[1771684796846,0.95557625,634.1,633.35,2.32889858]
[1771684797045,0.95557625,634.09,633.35,2.32889858]
[1771684797243,0.95557625,634.08,633.35,2.32889858]
[1771684797447,0.95557625,634.07,633.35,2.32889858]
[1771684797644,0.95557625,634.06,633.35,2.32889858]
[1771684797942,0.95557625,634.05,633.35,2.32889858]
[1771684798242,0.95557625,634.04,633.35,2.32889858]
[1771684798442,0.95557625,634.03,633.35,2.32889858]
[1771684798647,0.95557625,634.02,633.35,2.32889858]
[1771684798848,1.17916955,634.26,633.39,2.32889858]
[1771684799147,0.95548261,634.25,633.39,2.32889858]
[1771684799349,0.95548261,634.24,633.38,2.32889858]
[1771684799550,0.95548261,634.23,633.38,2.32889858]
[1771684799848,0.95548261,634.22,633.38,2.32889858]
[1771684800049,0.95548261,634.21,633.38,2.32889858]
[1771684800248,0.95548261,634.2,633.38,2.32889858]
[1771684800448,0.95548261,634.19,633.39,2.32889858]
[1771684800649,0.95548261,634.18,633.39,2.32889858]
[1771684800945,0.95548261,634.17,633.39,2.32889858]
[1771684801146,0.95548261,634.16,633.38,2.32889858]
[1771684801346,0.95548261,634.16,633.26,1.378]
[1771684801347,0.95548261,634.15,633.39,2.32889858]
[1771684801550,0.95548261,634.14,633.39,2.32889858]
[1771684801747,0.95548261,634.13,633.39,2.32889858]
[1771684801946,0.95548261,634.12,633.39,2.32889858]
[1771684802247,0.95548261,634.11,633.39,2.32889858]
[1771684802446,0.95548261,634.1,633.39,2.32889858]
[1771684802651,0.95548261,634.09,633.39,2.32889858]
[1771684802850,0.95548261,634.08,633.39,2.32889858]
[1771684803151,0.95548261,634.07,633.39,2.32889858]
[1771684803347,0.95548261,634.06,633.39,2.32889858]
[1771684803552,1.17916955,634.26,633.39,2.32889858]
[1771684803753,0.95548125,634.25,633.39,2.32889858]
[1771684803953,0.95548125,634.24,633.39,2.32889858]
[1771684804152,0.95548125,634.23,633.39,2.32889858]
[1771684804453,0.95548125,634.22,633.39,2.32889858]
[1771684804653,0.95548125,634.21,633.4,2.32889858]
[1771684804953,0.95548125,634.2,633.4,2.32889858]
[1771684805254,0.95548125,634.19,633.4,2.32889858]
[1771684805453,0.95548125,634.18,633.4,2.32889858]
[1771684805653,0.95548125,634.17,633.4,2.32889858]
[1771684805853,0.95548125,634.16,633.4,2.32889858]
[1771684806054,0.95548125,634.15,633.41,2.32889858]
[1771684806354,0.95548125,634.14,633.41,2.32889858]
[1771684806653,0.95548125,634.13,633.41,2.32889858]
[1771684806850,0.95548125,634.12,633.41,2.32889858]
[1771684807049,0.95548125,634.11,633.41,2.32889858]
[1771684807251,0.95548125,634.1,633.41,2.32889858]
[1771684807451,0.95548125,634.09,633.4,2.32889858]
[1771684807650,0.95548125,634.08,633.39,2.32889858]
[1771684807853,1.17916955,634.28,633.39,2.32889858]
[1771684808054,0.95522123,634.27,633.39,2.32889858]
[1771684808254,0.95522123,634.26,633.39,2.32889858]
[1771684808452,0.95522123,634.25,633.4,2.32889858]
[1771684808654,0.95522123,634.24,633.4,2.32889858]
[1771684808853,0.95522123,634.23,633.4,2.32889858]
[1771684809053,0.95522123,634.22,633.4,2.32889858]
[1771684809254,0.95522123,634.21,633.4,2.32889858]
[1771684809453,0.95522123,634.2,633.4,2.32889858]
[1771684809659,0.95522123,634.19,633.4,2.32889858]
[1771684809858,0.95522123,634.18,633.4,2.32889858]
[1771684810155,0.95522123,634.17,633.4,2.32889858]
[1771684810354,0.95522123,634.16,633.4,2.32889858]
[1771684810559,0.95522123,634.15,633.4,2.32889858]
[1771684810754,0.95522123,634.14,633.4,2.32889858]
[1771684810955,0.95522123,634.13,633.4,2.32889858]
[1771684811158,0.95522123,634.12,633.4,2.32889858]
[1771684811359,0.95522123,634.11,633.4,2.32889858]
[1771684811559,0.95522123,634.11,633.26,1.378]
[1771684811560,0.95522123,634.1,633.39,2.32889858]
[1771684811760,0.95522123,634.09,633.39,2.32889858]
[1771684811959,1.17916955,634.3,633.39,2.32889858]
[1771684812157,0.95492599,634.29,633.39,2.32889858]
[1771684812361,0.95492599,634.28,633.39,2.32889858]
[1771684812561,0.95492599,634.27,633.39,2.32889858]
[1771684812862,0.95492599,634.26,633.39,2.32889858]
[1771684813061,0.95492599,634.25,633.39,2.32889858]
[1771684813363,0.95492599,634.24,633.39,2.32889858]
[1771684813561,0.95492599,634.23,633.39,2.32889858]
[1771684813758,0.95492599,634.22,633.39,2.32889858]
[1771684813962,0.95492599,634.21,633.39,2.32889858]
[1771684814262,0.95492599,634.2,633.39,2.32889858]
[1771684814460,0.95492599,634.19,633.39,2.32889858]
[1771684814660,0.95492599,634.18,633.39,2.32889858]
[1771684814864,0.95492599,634.17,633.39,2.32889858]
[1771684815163,0.95492599,634.16,633.39,2.32889858]
[1771684815360,0.95492599,634.15,633.39,2.32889858]
[1771684815661,0.95492599,634.14,633.39,2.32889858]
[1771684815859,0.95492599,634.13,633.39,2.32889858]
[1771684816063,0.95492599,634.12,633.39,2.32889858]
[1771684816262,0.95492599,634.11,633.39,2.32889858]
[1771684816460,0.95492599,634.1,633.39,2.32889858]
[1771684816664,1.17916955,634.3,633.39,2.32889858]
[1771684816861,0.95468209,634.29,633.39,2.32889858]
[1771684817065,0.95468209,634.28,633.39,2.32889858]
[1771684817263,0.95468209,634.27,633.39,2.32889858]
[1771684817467,0.95468209,634.26,633.39,2.32889858]
[1771684817762,0.95468209,634.25,633.39,2.32889858]
[1771684817966,0.95468209,634.24,633.39,2.32889858]
[1771684818164,0.95468209,634.23,633.39,2.32889858]
[1771684818364,0.95468209,634.22,633.4,2.32889858]
[1771684818564,0.95468209,634.21,633.4,2.32889858]
[1771684818767,0.95468209,634.2,633.4,2.32889858]
[1771684818967,0.95468209,634.19,633.4,2.32889858]
[1771684819167,0.95468209,634.18,633.4,2.32889858]
[1771684819367,0.95468209,634.17,633.4,2.32889858]
[1771684819667,0.95468209,634.16,633.4,2.32889858]
[1771684819865,0.95468209,634.15,633.4,2.32889858]
[1771684820068,0.95468209,634.14,633.4,2.32889858]
[1771684820367,0.95468209,634.13,633.4,2.32889858]
[1771684820567,0.95468209,634.12,633.4,2.32889858]
[1771684820764,0.95468209,634.11,633.4,2.32889858]
[1771684820968,1.17916955,634.31,633.4,2.32889858]
[1771684821269,0.9538335,634.3,633.4,2.32889858]
[1771684821469,0.9538335,634.29,633.4,2.32889858]
[1771684821666,0.9538335,634.28,633.4,2.32889858]
[1771684821971,0.9538335,634.27,633.4,2.32889858]
[1771684822170,0.9538335,634.26,633.4,2.32889858]
[1771684822370,0.9538335,634.25,633.4,2.32889858]
[1771684822569,0.9538335,634.24,633.4,2.32889858]
[1771684822766,0.9538335,634.23,633.4,2.32889858]
[1771684822975,0.9538335,634.22,633.4,2.32889858]
[1771684823169,0.9538335,634.21,633.4,2.32889858]
[1771684823469,0.9538335,634.2,633.4,2.32889858]
[1771684823671,0.9538335,634.19,633.4,2.32889858]
[1771684823869,0.9538335,634.18,633.4,2.32889858]
[1771684824167,0.9538335,634.17,633.4,2.32889858]
[1771684824469,0.9538335,634.16,633.4,2.32889858]
[1771684824666,0.9538335,634.15,633.4,2.32889858]
[1771684824870,0.9538335,634.14,633.4,2.32889858]
[1771684825065,0.9538335,634.13,633.4,2.32889858]
[1771684825266,0.9538335,634.12,633.4,2.32889858]
[1771684825466,0.9538335,634.11,633.4,2.32889858]
[1771684825666,0.9538335,634.1,633.4,2.32889858]
[1771684825870,1.17916955,634.31,633.4,2.32889858]
[1771684826067,0.95407528,634.3,633.4,2.32889858]
[1771684826270,0.95407528,634.29,633.41,2.32889858]
[1771684826470,0.95407528,634.28,633.41,2.32889858]
[1771684826669,0.95407528,634.27,633.41,2.32889858]
[1771684826867,0.95407528,634.26,633.41,2.32889858]
[1771684827072,0.95407528,634.25,633.41,2.32889858]
[1771684827271,0.95407528,634.24,633.41,2.32889858]
[1771684827472,0.95407528,634.23,633.41,2.32889858]
[1771684827669,0.95407528,634.22,633.41,2.32889858]
[1771684827869,0.95407528,634.21,633.41,2.32889858]
[1771684828173,0.95407528,634.2,633.41,2.32889858]
[1771684828373,0.95407528,634.19,633.41,2.32889858]
[1771684828573,0.95407528,634.18,633.41,2.32889858]
[1771684828774,0.95407528,634.17,633.41,2.32889858]
[1771684829074,0.95407528,634.16,633.41,2.32889858]
[1771684829274,0.95407528,634.15,633.41,2.32889858]
[1771684829476,0.95407528,634.14,633.42,2.32889858]
[1771684829675,0.95407528,634.13,633.42,3.47389858]
[1771684829875,0.95407528,634.12,633.42,3.47389858]
[1771684830172,0.95407528,634.11,633.42,3.47389858]
[1771684830375,0.95407528,634.1,633.42,3.47389858]
[1771684830569,0.95407528,634.09,633.42,3.47389858]
[1771684830773,1.17916955,634.29,633.42,3.47389858]
[1771684830975,0.95466023,634.28,633.42,3.47389858]
[1771684831175,0.95466023,634.27,633.42,3.47389858]
[1771684831375,0.95466023,634.26,633.42,3.47389858]
[1771684831573,0.95466023,634.25,633.42,3.47389858]
[1771684831876,0.95466023,634.24,633.42,3.47389858]
[1771684832077,0.95466023,634.23,633.42,3.47389858]
[1771684832373,0.95466023,634.22,633.43,2.32889858]
[1771684832573,0.95466023,634.21,633.43,2.32889858]
[1771684832776,0.95466023,634.2,633.43,2.32889858]
[1771684832980,0.95466023,634.19,633.43,2.32889858]
[1771684833179,0.95466023,634.18,633.43,2.32889858]
[1771684833480,0.95466023,634.17,633.43,2.32889858]
[1771684833675,0.95466023,634.16,633.43,2.32889858]
[1771684833979,0.95466023,634.15,633.43,2.32889858]
[1771684834180,0.95466023,634.14,633.43,2.32889858]
[1771684834377,0.95466023,634.13,633.43,2.32889858]
[1771684834578,0.95466023,634.12,633.43,2.32889858]
[1771684834777,0.95466023,634.11,633.43,2.32889858]
[1771684835080,0.95466023,634.1,633.43,2.32889858]
[1771684835277,0.95466023,634.09,633.43,2.32889858]
[1771684835479,0.95466023,634.08,633.43,2.32889858]
[1771684835678,0.95466023,634.07,633.43,2.32889858]
[1771684835880,1.17916955,634.28,633.43,2.32889858]
[1771684836079,0.95515852,634.27,633.43,2.32889858]
[1771684836282,0.95515852,634.26,633.43,2.32889858]
[1771684836480,0.95515852,634.25,633.44,2.32889858]
[1771684836680,0.95515852,634.24,633.44,2.32889858]
[1771684836880,0.95515852,634.23,633.44,2.32889858]
[1771684837079,0.95515852,634.22,633.45,2.32889858]
[1771684837282,0.95515852,634.21,633.45,2.32889858]
[1771684837481,0.95515852,634.2,633.45,2.32889858]
[1771684837784,0.95515852,634.19,633.45,2.32889858]
[1771684838083,0.95515852,634.18,633.48,2.32889858]
[1771684838283,0.95515852,634.17,633.48,2.32889858]
[1771684838580,0.95515852,634.16,633.48,2.32889858]
[1771684838882,0.95515852,634.15,633.48,2.32889858]
[1771684839084,0.95515852,634.14,633.48,2.32889858]
[1771684839285,0.95515852,634.13,633.48,2.32889858]
[1771684839483,0.95515852,634.12,633.48,2.32889858]
[1771684839685,0.95515852,634.11,633.48,2.32889858]
[1771684839884,0.95515852,634.1,633.48,2.32889858]
[1771684840087,0.95515852,634.09,633.48,2.32889858]
[1771684840387,1.17916955,634.29,633.49,2.32889858]
[1771684840584,0.95568445,634.28,633.49,2.32889858]
[1771684840784,0.95568445,634.27,633.49,2.32889858]
[1771684840987,0.95568445,634.26,633.49,2.32889858]
[1771684841187,0.95568445,634.25,633.49,2.32889858]
[1771684841387,0.95568445,634.24,633.49,2.32889858]
[1771684841686,0.95568445,634.23,633.49,2.32889858]
[1771684841887,0.95568445,634.22,633.49,2.32889858]
[1771684842187,0.95568445,634.21,633.49,2.32889858]
[1771684842385,0.95568445,634.2,633.49,2.32889858]
[1771684842589,0.95568445,634.19,633.49,2.32889858]
[1771684842786,0.95568445,634.18,633.49,2.32889858]
[1771684842991,0.95568445,634.17,633.49,2.32889858]
[1771684843189,0.95568445,634.16,633.49,2.32889858]
[1771684843388,0.95568445,634.15,633.49,2.32889858]
[1771684843593,0.95568445,634.14,633.49,2.32889858]
[1771684843894,0.95568445,634.13,633.49,2.32889858]
[1771684844090,0.95568445,634.28,633.49,2.32889858]
[1771684844291,0.95568445,634.27,633.49,2.32889858]
[1771684844593,0.95568445,634.26,633.49,2.32889858]
[1771684844793,0.95568445,634.25,633.49,2.32889858]
[1771684844993,0.95568445,634.24,633.49,2.32889858]
[1771684845191,0.95568445,634.23,633.47,2.32889858]
[1771684845389,0.95568445,634.22,633.47,2.32889858]
[1771684845592,0.95568445,634.21,633.47,2.32889858]
[1771684845790,0.95568445,634.2,633.47,2.32889858]
[1771684846095,0.95568445,634.19,633.47,2.32889858]
[1771684846289,0.95568445,634.18,633.48,2.32889858]
[1771684846493,0.95568445,634.17,633.48,2.32889858]
[1771684846690,0.95568445,634.16,633.48,2.32889858]
[1771684846893,0.95568445,634.15,633.48,2.32889858]
[1771684847091,0.95568445,634.14,633.48,2.32889858]
[1771684847294,0.95568445,634.13,633.48,2.32889858]
[1771684847494,0.95568445,634.12,633.48,2.32889858]
[1771684847696,0.95568445,634.11,633.48,2.32889858]
[1771684847892,0.95568445,634.1,633.48,2.32889858]
[1771684848098,0.95568445,634.09,633.48,2.32889858]
[1771684848392,0.95568445,634.08,633.48,2.32889858]
[1771684848696,0.95568445,634.07,633.48,2.32889858]
[1771684848894,1.17916955,634.27,633.48,2.32889858]
[1771684849097,0.95596925,634.26,633.48,2.32889858]
[1771684849292,0.95596925,634.25,633.48,2.32889858]
[1771684849494,0.95596925,634.24,633.48,2.32889858]
[1771684849692,0.95596925,634.23,633.48,2.32889858]
[1771684849896,0.95596925,634.22,633.48,2.32889858]
[1771684850092,0.95596925,634.21,633.48,2.32889858]
[1771684850296,0.95596925,634.2,633.48,2.32889858]
[1771684850594,0.95596925,634.19,633.48,2.32889858]
[1771684850793,1.17916955,634.27,633.48,2.32889858]
[1771684850794,0.95596925,634.18,633.48,2.32889858]
[1771684851096,0.95596925,634.17,633.48,2.32889858]
[1771684851294,0.95596925,634.16,633.48,2.32889858]
[1771684851592,0.95596925,634.15,633.48,2.32889858]
[1771684851795,0.95596925,634.14,633.49,2.32889858]
[1771684851994,0.95596925,634.13,633.49,2.32889858]
[1771684852194,0.95596925,634.12,633.49,2.32889858]
[1771684852393,0.95596925,634.11,633.49,2.32889858]
[1771684852597,0.95596925,634.1,633.49,2.32889858]
[1771684852893,0.95596925,634.09,633.49,2.32889858]
[1771684853192,0.95596925,634.08,633.49,2.32889858]
[1771684853395,0.95596925,634.07,633.49,2.32889858]
[1771684853594,1.17916955,634.27,633.49,2.32889858]
[1771684853897,0.95582422,634.26,633.49,2.32889858]
[1771684854095,0.95582422,634.25,633.49,2.32889858]
[1771684854299,0.95582422,634.24,633.49,2.32889858]
[1771684854495,0.95582422,634.23,633.49,2.32889858]
[1771684854694,0.95582422,634.22,633.49,2.32889858]
[1771684854898,0.95582422,634.21,633.49,2.32889858]
[1771684855099,0.95582422,634.2,633.49,2.32889858]
[1771684855400,0.95582422,634.19,633.49,2.32889858]
[1771684855596,0.95582422,634.18,633.49,2.32889858]
[1771684855897,0.95582422,634.17,633.49,2.32889858]
[1771684856097,0.95582422,634.16,633.49,2.32889858]
[1771684856302,0.95582422,634.15,633.49,2.32889858]
[1771684856598,0.95582422,634.14,633.49,2.32889858]
[1771684856802,0.95582422,634.13,633.49,2.32889858]
[1771684857002,0.95582422,634.12,633.49,2.32889858]
[1771684857201,0.95582422,634.11,633.49,2.32889858]
[1771684857403,0.95582422,634.1,633.49,2.32889858]
[1771684857603,0.95582422,634.09,633.49,2.32889858]
[1771684857803,0.95582422,634.08,633.49,2.32889858]
[1771684858105,0.95582422,634.07,633.49,2.32889858]
[1771684858303,1.17916955,634.27,633.49,2.32889858]
[1771684858505,0.95583413,634.26,633.49,2.32889858]
[1771684858802,0.95583413,634.25,633.49,2.32889858]
[1771684859003,0.95583413,634.24,633.49,2.32889858]
[1771684859205,1.17916955,634.27,633.49,2.32889858]
[1771684859206,0.95583413,634.23,633.49,2.32889858]
[1771684859503,0.95583413,634.22,633.49,2.32889858]
[1771684859705,0.95583413,634.21,633.49,2.32889858]
[1771684859905,0.95583413,634.2,633.49,2.32889858]
[1771684860105,0.95583413,634.19,633.49,2.32889858]
[1771684860305,0.95583413,634.18,633.49,2.32889858]
[1771684860501,0.95583413,634.17,633.49,2.32889858]
[1771684860706,0.95583413,634.16,633.49,2.32889858]
[1771684861006,0.95583413,634.15,633.49,2.32889858]
[1771684861306,0.95583413,634.14,633.49,2.32889858]
[1771684861602,0.95583413,634.13,633.49,2.32889858]
[1771684861806,0.95583413,634.12,633.49,2.32889858]
[1771684862106,0.95583413,634.11,633.49,2.32889858]
[1771684862303,0.95583413,634.1,633.49,2.32889858]
[1771684862502,0.95583413,634.09,633.49,2.32889858]
[1771684862707,0.95583413,634.08,633.49,2.32889858]
[1771684862904,0.95583413,634.07,633.49,2.32889858]
[1771684863207,1.17916955,634.27,633.49,2.32889858]
[1771684863408,0.95588436,634.26,633.49,2.32889858]
[1771684863708,0.95588436,634.25,633.49,2.32889858]
[1771684863908,0.95588436,634.24,633.49,2.32889858]
[1771684864108,0.95588436,634.23,633.49,2.32889858]
[1771684864311,0.95588436,634.22,633.49,2.32889858]
[1771684864506,0.95588436,634.21,633.49,2.32889858]
[1771684864707,0.95588436,634.2,633.49,2.32889858]
[1771684864906,0.95588436,634.19,633.49,2.32889858]
[1771684865207,0.95588436,634.18,633.49,2.32889858]
[1771684865411,0.95588436,634.17,633.49,2.32889858]
[1771684865611,0.95588436,634.16,633.49,2.32889858]
[1771684865806,0.95588436,634.15,633.49,2.32889858]
[1771684866011,0.95588436,634.14,633.49,2.32889858]
[1771684866209,0.95588436,634.13,633.49,2.32889858]
[1771684866409,0.95588436,634.12,633.49,2.32889858]
[1771684866713,0.95588436,634.11,633.49,2.32889858]
[1771684867009,0.95588436,634.1,633.49,2.32889858]
[1771684867314,0.95588436,634.09,633.49,2.32889858]
[1771684867510,0.95588436,634.08,633.49,2.32889858]
[1771684867715,0.95588436,634.07,633.49,2.32889858]
[1771684867911,1.17916955,634.27,633.49,2.32889858]
[1771684868211,0.95590765,634.26,633.49,2.32889858]
[1771684868409,0.95590765,634.25,633.49,2.32889858]
[1771684868610,0.95590765,634.24,633.49,2.32889858]
[1771684868813,0.95590765,634.23,633.49,2.32889858]
[1771684869013,0.95590765,634.22,633.49,2.32889858]
[1771684869214,0.95590765,634.21,633.49,2.32889858]
[1771684869415,0.95590765,634.2,633.49,2.32889858]
[1771684869611,0.95590765,634.19,633.49,2.32889858]
[1771684869815,0.95590765,634.18,633.49,2.32889858]
[1771684870015,0.95590765,634.17,633.49,2.32889858]
[1771684870312,0.95590765,634.16,633.49,2.32889858]
[1771684870518,0.95590765,634.15,633.49,2.32889858]
[1771684870712,0.95590765,634.14,633.49,2.32889858]
[1771684870916,0.95590765,634.13,633.49,2.32889858]
[1771684871117,0.95590765,634.12,633.49,2.32889858]
[1771684871313,0.95590765,634.11,633.49,2.32889858]
[1771684871517,0.95590765,634.1,633.47,2.32889858]
[1771684871717,0.95590765,634.09,633.47,2.32889858]
[1771684872017,0.95590765,634.08,633.47,2.32889858]
[1771684872215,0.95590765,634.07,633.47,2.32889858]
[1771684872414,0.95590765,634.06,633.47,2.32889858]
[1771684872617,0.95590765,634.05,633.42,1.145]
[1771684872814,0.95590765,634.04,633.42,1.145]
[1771684873019,0.95590765,634.03,633.42,1.145]
[1771684873315,1.56703194,634.29,633.42,1.145]
[1771684873316,0.95590765,634.02,633.42,1.145]
[1771684873514,0.95590765,634.01,633.42,1.145]
[1771684873719,0.95590765,634.0,633.42,1.145]
[1771684873914,0.95590765,633.99,633.42,1.145]
[1771684874117,0.95590765,633.98,633.42,1.145]
[1771684874414,1.17916955,634.19,633.42,1.145]
[1771684874613,0.95557493,634.18,633.42,1.145]
[1771684874918,0.95557493,634.17,633.42,1.145]
[1771684875119,0.95557493,634.16,633.42,1.145]
[1771684875317,0.95557493,634.15,633.42,1.145]
[1771684875515,0.95557493,634.14,633.42,1.145]
[1771684875720,0.95557493,634.13,633.42,1.145]
[1771684875920,0.95557493,634.12,633.42,1.145]
[1771684876215,0.95557493,634.11,633.42,1.145]
[1771684876421,0.95557493,634.1,633.42,1.145]
[1771684876616,0.95557493,634.09,633.42,1.145]
[1771684876915,0.95557493,634.08,633.42,1.145]
[1771684877214,0.95557493,634.07,633.42,1.145]
[1771684877417,3.9126045,634.88,633.42,1.145]
[1771684877418,0.95557493,634.06,633.42,1.145]
[1771684877616,0.95557493,634.05,633.42,1.145]
[1771684877819,0.95557493,634.04,633.42,1.145]
[1771684878119,0.95557493,634.03,633.42,1.145]
[1771684878317,0.95557493,634.02,633.42,1.145]
[1771684878616,0.95557493,634.01,633.42,1.145]
[1771684878815,0.95557493,634.0,633.42,1.145]
[1771684879016,0.95557493,633.99,633.42,1.145]
[1771684879217,0.95557493,633.98,633.42,1.145]
[1771684879417,0.95557493,633.97,633.42,1.145]
[1771684879616,0.95557493,633.96,633.42,1.145]
[1771684879819,0.95557493,633.95,633.42,1.145]
[1771684880018,0.95557493,633.94,633.42,1.145]
[1771684880217,1.17916955,634.15,633.42,1.145]
[1771684880417,0.95438813,634.14,633.42,1.145]
[1771684880617,0.95438813,634.13,633.35,0.27443605]
[1771684880817,0.95438813,634.12,633.35,0.27443605]
[1771684881017,0.95438813,634.11,633.35,0.27443605]
[1771684881321,0.95438813,634.1,633.35,0.27443605]
[1771684881521,0.95438813,634.09,633.35,0.27443605]
[1771684881719,0.95438813,634.08,633.35,0.27443605]
[1771684882020,0.95438813,634.07,633.35,0.27443605]
[1771684882219,0.95438813,634.06,633.35,0.27443605]
[1771684882419,0.95438813,634.05,633.35,0.27443605]
[1771684882620,0.95438813,634.04,633.35,0.27443605]
[1771684882817,0.95438813,634.03,633.35,0.27443605]
[1771684883019,0.95438813,634.02,633.35,0.27443605]
[1771684883222,0.95438813,634.01,633.35,0.27443605]
[1771684883419,0.95438813,634.0,633.35,0.27443605]
[1771684883621,0.95438813,633.99,633.36,1.658]
[1771684883820,0.95438813,633.98,633.36,1.658]
[1771684884023,1.17916955,634.17,633.36,1.658]
[1771684884024,0.95438813,633.97,633.36,1.658]
[1771684884224,1.17916955,634.17,633.36,1.658]
[1771684884524,0.95325945,634.16,633.36,1.658]
[1771684884721,0.95325945,634.15,633.36,1.658]
[1771684884919,0.95325945,634.14,633.36,1.658]
[1771684885124,0.95325945,634.13,633.36,1.658]
[1771684885322,0.95325945,634.12,633.36,1.658]
[1771684885525,0.95325945,634.11,633.36,1.658]
[1771684885725,0.95325945,634.1,633.36,1.658]
[1771684885924,0.95325945,634.09,633.36,1.658]
[1771684886124,0.95325945,634.08,633.36,1.658]
[1771684886323,0.95325945,634.07,633.36,1.658]
[1771684886523,0.95325945,634.06,633.36,1.658]
[1771684886727,0.95325945,634.05,633.36,1.658]
[1771684886928,0.95325945,634.04,633.36,1.658]
[1771684887129,0.95325945,634.03,633.36,1.658]
[1771684887329,0.95325945,634.02,633.36,1.658]
[1771684887529,0.95325945,634.01,633.36,1.658]
[1771684887830,0.95325945,634.0,633.36,1.658]
[1771684888027,0.95325945,633.99,633.36,1.658]
[1771684888226,0.95325945,633.98,633.36,1.658]
[1771684888431,1.17916955,634.18,633.36,1.658]
[1771684888928,2.13206903,634.17,633.36,1.658]
[1771684889132,1.17916955,634.13,633.36,1.658]
[1771684889827,2.13206903,634.13,633.36,1.658]
[1771684890028,0.95289948,634.12,633.36,1.658]
[1771684890230,1.17916955,634.13,633.36,1.658]
[1771684890231,0.95289948,634.11,633.36,1.658]
[1771684890430,3.9126045,634.82,633.36,1.658]
[1771684890431,0.95289948,634.1,633.36,1.658]
[1771684890629,0.95289948,634.09,633.36,1.658]
[1771684890830,1.17916955,634.0,633.36,1.658]
[1771684891027,1.17916955,633.96,633.36,1.658]
[1771684891228,2.13206903,633.98,633.36,1.658]
[1771684891428,0.95289948,633.97,633.36,1.658]
[1771684891735,0.95289948,633.96,633.36,1.658]
[1771684891935,0.95289948,633.95,633.36,1.658]
[1771684892235,0.95289948,633.94,633.36,1.658]